[Event "*** Titled Tuesday Blitz"]
[Site "Chess.com"]
[Date "2020.04.07"]
[Round "5"]
[White "Keaton87"]
[Black "Noam_Vitenberg"]
[Result "0-1"]
[WhiteElo "2613"]
[BlackElo "2442"]
[TimeControl "180+1"]
[EndTime "13:56:15 PDT"]
[Termination "Noam_Vitenberg won by resignation"]

1. d4 {[%clk 0:03:00.9]} 1... Nf6 {[%clk 0:02:59.4]} 2. Bg5 {[%clk 0:03:00.2]}
2... g6 {[%clk 0:02:51]} 3. Bxf6 {[%clk 0:02:58.8]} 3... exf6 {[%clk 0:02:51.9]}
4. e3 {[%clk 0:02:59.7]} 4... Bg7 {[%clk 0:02:52.3]} 5. g3 {[%clk 0:02:59.4]}
5... O-O {[%clk 0:02:53.2]} 6. Bg2 {[%clk 0:02:59.6]} 6... f5 {[%clk 0:02:52.9]}
7. Ne2 {[%clk 0:02:59.7]} 7... Re8 {[%clk 0:02:52.2]} 8. O-O {[%clk 0:02:59.5]}
8... d6 {[%clk 0:02:29.3]} 9. c4 {[%clk 0:02:59.2]} 9... Nd7 {[%clk 0:02:29.1]}
10. Nbc3 {[%clk 0:02:56.8]} 10... c6 {[%clk 0:02:23.9]} 11. b4 {[%clk
0:02:56.3]} 11... Nb6 {[%clk 0:02:02.5]} 12. Qb3 {[%clk 0:02:54.9]} 12... Be6
{[%clk 0:01:47.8]} 13. d5 {[%clk 0:02:54.6]} 13... cxd5 {[%clk 0:01:45.5]} 14.
cxd5 {[%clk 0:02:54.9]} 14... Bd7 {[%clk 0:01:45]} 15. a4 {[%clk 0:02:54.7]}
15... Rc8 {[%clk 0:01:42.9]} 16. a5 {[%clk 0:02:52.8]} 16... Nc4 {[%clk
0:01:42.7]} 17. Rfd1 {[%clk 0:02:50.1]} 17... Nxe3 {[%clk 0:01:08.7]} 18. fxe3
{[%clk 0:02:39.6]} 18... Rxe3 {[%clk 0:01:09.6]} 19. Rac1 {[%clk 0:02:38.2]}
19... Qc7 {[%clk 0:00:50.5]} 20. Nb5 {[%clk 0:02:28.9]} 20... Qxc1 {[%clk
0:00:43.5]} 21. Nxc1 {[%clk 0:01:50.9]} 21... Rxb3 {[%clk 0:00:40.5]} 22. Nxd6
{[%clk 0:01:51]} 22... Rxb4 {[%clk 0:00:09.8]} 23. Nxc8 {[%clk 0:01:50.5]} 23...
Bxc8 {[%clk 0:00:10.7]} 24. Nd3 {[%clk 0:01:48.6]} 24... Rd4 {[%clk 0:00:10.2]}
25. Kf1 {[%clk 0:01:42]} 25... Bd7 {[%clk 0:00:08.1]} 26. Kf2 {[%clk 0:01:18.5]}
26... Bb5 {[%clk 0:00:07.8]} 27. Nb2 {[%clk 0:01:19.2]} 27... Rxd1 {[%clk
0:00:05]} 28. Nxd1 {[%clk 0:01:20.1]} 28... Bd4+ {[%clk 0:00:04.7]} 29. Kf3
{[%clk 0:01:19.6]} 29... Ba4 {[%clk 0:00:04.7]} 30. Ne3 {[%clk 0:01:15.5]} 30...
Bxe3 {[%clk 0:00:04.9]} 31. Kxe3 {[%clk 0:01:16.4]} 31... Kf8 {[%clk 0:00:05.2]}
32. Kd4 {[%clk 0:01:16.3]} 32... Ke7 {[%clk 0:00:03.3]} 33. Kc5 {[%clk
0:01:16.4]} 33... Kd7 {[%clk 0:00:03.6]} 34. Bf1 {[%clk 0:01:11.7]} 34... b6+
{[%clk 0:00:03.3]} 35. Kb4 {[%clk 0:01:10.3]} 35... Bd1 {[%clk 0:00:02.6]} 36.
a6 {[%clk 0:01:09.7]} 36... Kd6 {[%clk 0:00:02.8]} 37. Bc4 {[%clk 0:01:10.3]}
37... Bf3 {[%clk 0:00:02.8]} 38. Bf1 {[%clk 0:01:05.7]} 38... Bxd5 {[%clk
0:00:03.7]} 39. Kc3 {[%clk 0:01:06.2]} 39... Bc6 {[%clk 0:00:03.8]} 40. Kd4
{[%clk 0:01:07.1]} 40... b5 {[%clk 0:00:02.7]} 41. Bd3 {[%clk 0:01:06.9]} 41...
b4 {[%clk 0:00:01.8]} 42. Bc4 {[%clk 0:01:07.2]} 42... Kc7 {[%clk 0:00:02.7]}
43. Kc5 {[%clk 0:01:04.8]} 43... Bd7 {[%clk 0:00:02.2]} 44. Kxb4 {[%clk
0:01:03.9]} 44... Be6 {[%clk 0:00:02.3]} 45. Bd3 {[%clk 0:01:03.2]} 45... Kb6
{[%clk 0:00:02.6]} 46. Kc3 {[%clk 0:01:03.9]} 46... Bc8 {[%clk 0:00:03]} 47. Kd4
{[%clk 0:01:03.9]} 47... Bxa6 {[%clk 0:00:03]} 48. Bc2 {[%clk 0:01:04.8]} 48...
Bc8 {[%clk 0:00:03.2]} 49. Bb3 {[%clk 0:01:05.7]} 49... Be6 {[%clk 0:00:04.1]}
50. Ba4 {[%clk 0:01:05.1]} 50... a5 {[%clk 0:00:04.4]} 51. Be8 {[%clk 0:01:06]}
51... Kc7 {[%clk 0:00:04.5]} 52. Ke5 {[%clk 0:01:05.7]} 52... Kd8 {[%clk
0:00:04.5]} 53. Ba4 {[%clk 0:01:05]} 53... Ke7 {[%clk 0:00:04.8]} 54. h4 {[%clk
0:01:04.2]} 54... f6+ {[%clk 0:00:05.7]} 55. Kd4 {[%clk 0:01:04.2]} 55... Bd7
{[%clk 0:00:06.6]} 56. Bc2 {[%clk 0:01:03.7]} 56... a4 {[%clk 0:00:06.9]} 57.
Kc5 {[%clk 0:01:03.8]} 57... a3 {[%clk 0:00:07.1]} 58. Bb3 {[%clk 0:01:04.3]}
58... Be6 {[%clk 0:00:07.2]} 0-1

[Event "*** Titled Tuesday Blitz"]
[Site "Chess.com"]
[Date "2020.04.07"]
[Round "5"]
[White "Volodar_Murzin"]
[Black "stolencandy13"]
[Result "1-0"]
[WhiteElo "2686"]
[BlackElo "2437"]
[TimeControl "180+1"]
[EndTime "13:56:18 PDT"]
[Termination "Volodar_Murzin won by resignation"]

1. e4 {[%clk 0:03:00.9]} 1... c6 {[%clk 0:02:59.6]} 2. Nf3 {[%clk 0:02:59]} 2...
d5 {[%clk 0:03:00.5]} 3. Nc3 {[%clk 0:02:58.9]} 3... Bg4 {[%clk 0:02:59.4]} 4.
h3 {[%clk 0:02:58.9]} 4... Bxf3 {[%clk 0:02:58.5]} 5. Qxf3 {[%clk 0:02:59.8]}
5... e6 {[%clk 0:02:59.4]} 6. g3 {[%clk 0:02:57.9]} 6... Nf6 {[%clk 0:02:59.2]}
7. Bg2 {[%clk 0:02:57.5]} 7... Nbd7 {[%clk 0:02:56.4]} 8. O-O {[%clk 0:02:53.5]}
8... g6 {[%clk 0:02:47.3]} 9. d3 {[%clk 0:02:52.3]} 9... Bg7 {[%clk 0:02:45.6]}
10. Qe2 {[%clk 0:02:51.8]} 10... dxe4 {[%clk 0:02:41.1]} 11. dxe4 {[%clk
0:02:51.2]} 11... O-O {[%clk 0:02:40.8]} 12. Be3 {[%clk 0:02:41.8]} 12... Qc7
{[%clk 0:02:28.2]} 13. Rad1 {[%clk 0:02:37.6]} 13... Rad8 {[%clk 0:02:23.6]} 14.
a3 {[%clk 0:02:29.5]} 14... Nb6 {[%clk 0:02:23.1]} 15. Rxd8 {[%clk 0:02:00.5]}
15... Rxd8 {[%clk 0:02:24]} 16. Rd1 {[%clk 0:02:00.6]} 16... Rxd1+ {[%clk
0:02:20.5]} 17. Nxd1 {[%clk 0:02:01.5]} 17... Nfd7 {[%clk 0:02:03.4]} 18. b3
{[%clk 0:01:51.7]} 18... Qd6 {[%clk 0:01:56]} 19. a4 {[%clk 0:01:47]} 19... c5
{[%clk 0:01:36.3]} 20. a5 {[%clk 0:01:22.9]} 20... Nc8 {[%clk 0:01:26.4]} 21. f4
{[%clk 0:01:22.7]} 21... Bd4 {[%clk 0:01:19.7]} 22. e5 {[%clk 0:01:19.9]} 22...
Qc7 {[%clk 0:01:13.2]} 23. Qd2 {[%clk 0:01:12.1]} 23... Bxe3+ {[%clk 0:01:05.8]}
24. Nxe3 {[%clk 0:01:13]} 24... b6 {[%clk 0:00:57.4]} 25. a6 {[%clk 0:00:55.9]}
25... b5 {[%clk 0:00:38.7]} 26. Bb7 {[%clk 0:00:47.4]} 26... Ndb6 {[%clk
0:00:34.1]} 27. Ng4 {[%clk 0:00:42.9]} 27... h5 {[%clk 0:00:22.3]} 28. Nf6+
{[%clk 0:00:40.5]} 28... Kf8 {[%clk 0:00:22.8]} 29. Kf2 {[%clk 0:00:20.3]} 29...
c4 {[%clk 0:00:23]} 30. b4 {[%clk 0:00:19.7]} 30... c3 {[%clk 0:00:22]} 31. Qd4
{[%clk 0:00:19]} 31... Ne7 {[%clk 0:00:19.6]} 32. g4 {[%clk 0:00:14.5]} 32...
hxg4 {[%clk 0:00:16.7]} 33. hxg4 {[%clk 0:00:15.4]} 33... Nc6 {[%clk 0:00:16.1]}
34. Qc5+ {[%clk 0:00:15]} 34... Qe7 {[%clk 0:00:07.1]} 35. Bxc6 {[%clk
0:00:12.5]} 35... Qxc5+ {[%clk 0:00:06.8]} 36. bxc5 {[%clk 0:00:13.4]} 36... Na4
{[%clk 0:00:06.8]} 37. Bxb5 {[%clk 0:00:12.9]} 37... Nxc5 {[%clk 0:00:07.1]} 38.
Ke3 {[%clk 0:00:13]} 38... Ke7 {[%clk 0:00:06.1]} 39. Ne4 {[%clk 0:00:13]} 1-0

[Event "*** Titled Tuesday Blitz"]
[Site "Chess.com"]
[Date "2020.04.07"]
[Round "5"]
[White "TheBigBadChessDad"]
[Black "TomasKapitanchuk"]
[Result "0-1"]
[WhiteElo "2267"]
[BlackElo "2487"]
[TimeControl "180+1"]
[EndTime "13:56:18 PDT"]
[Termination "TomasKapitanchuk won by resignation"]

1. d4 {[%clk 0:03:00.9]} 1... Nf6 {[%clk 0:02:59.5]} 2. Nf3 {[%clk 0:03:00.9]}
2... e6 {[%clk 0:02:59.9]} 3. Bf4 {[%clk 0:03:00.8]} 3... d5 {[%clk 0:02:59.8]}
4. e3 {[%clk 0:03:00.9]} 4... Bd6 {[%clk 0:03:00.3]} 5. Bg3 {[%clk 0:03:00.8]}
5... O-O {[%clk 0:03:00.5]} 6. Nbd2 {[%clk 0:03:00.6]} 6... c5 {[%clk
0:03:00.5]} 7. c3 {[%clk 0:03:00.8]} 7... Nc6 {[%clk 0:03:00.5]} 8. Bb5 {[%clk
0:03:00.4]} 8... Ne7 {[%clk 0:02:59.2]} 9. Bd3 {[%clk 0:03:00.1]} 9... b6 {[%clk
0:02:57.5]} 10. Ne5 {[%clk 0:02:58.9]} 10... Bb7 {[%clk 0:02:57.6]} 11. f4
{[%clk 0:02:57.6]} 11... Ne4 {[%clk 0:02:57.7]} 12. Qf3 {[%clk 0:02:50.4]} 12...
f6 {[%clk 0:02:54.4]} 13. Ng4 {[%clk 0:02:38.2]} 13... Nxd2 {[%clk 0:02:53.2]}
14. Kxd2 {[%clk 0:02:37.7]} 14... Nf5 {[%clk 0:02:53]} 15. Raf1 {[%clk
0:02:19.9]} 15... Be7 {[%clk 0:02:52.3]} 16. Nf2 {[%clk 0:02:18.1]} 16... Nd6
{[%clk 0:02:50.3]} 17. h4 {[%clk 0:02:17.5]} 17... Qc8 {[%clk 0:02:34.7]} 18. h5
{[%clk 0:02:15.7]} 18... Ba6 {[%clk 0:02:29.5]} 19. Bxa6 {[%clk 0:02:08.9]}
19... Qxa6 {[%clk 0:02:30.4]} 20. a3 {[%clk 0:02:09.4]} 20... Qb5 {[%clk
0:02:25.6]} 21. Nd1 {[%clk 0:02:08.7]} 21... Rac8 {[%clk 0:02:22.3]} 22. Qe2
{[%clk 0:02:04.1]} 22... Nc4+ {[%clk 0:02:21]} 23. Kc1 {[%clk 0:02:03.8]} 23...
e5 {[%clk 0:02:14.1]} 24. fxe5 {[%clk 0:02:03]} 24... fxe5 {[%clk 0:02:13.5]}
25. Rxf8+ {[%clk 0:01:52.6]} 25... Rxf8 {[%clk 0:02:12.8]} 26. Bxe5 {[%clk
0:01:52.2]} 26... Qb3 {[%clk 0:02:02.8]} 27. Rf1 {[%clk 0:01:42.4]} 27... Nxe5
{[%clk 0:01:50.1]} 28. Rxf8+ {[%clk 0:01:37.3]} 28... Kxf8 {[%clk 0:01:49.3]}
29. dxe5 {[%clk 0:01:38.2]} 29... Bg5 {[%clk 0:01:44.4]} 30. Qg4 {[%clk
0:01:33.2]} 30... h6 {[%clk 0:01:41.8]} 31. Qf5+ {[%clk 0:01:28.3]} 31... Ke7
{[%clk 0:01:40.7]} 32. e6 {[%clk 0:01:27]} 32... Bf6 {[%clk 0:01:40.8]} 33. e4
{[%clk 0:01:20.5]} 33... Bg5+ {[%clk 0:01:36.1]} 34. Kb1 {[%clk 0:01:14.9]}
34... Qxd1+ {[%clk 0:01:35.7]} 35. Ka2 {[%clk 0:01:15.2]} 35... dxe4 {[%clk
0:01:16.3]} 36. Qf7+ {[%clk 0:01:14.1]} 36... Kd8 {[%clk 0:01:16.6]} 37. Qf8+
{[%clk 0:01:03.1]} 37... Kc7 {[%clk 0:01:16]} 38. Qxg7+ {[%clk 0:01:02.8]} 38...
Kc6 {[%clk 0:01:15.3]} 39. c4 {[%clk 0:00:57]} 39... Qd4 {[%clk 0:01:10.1]} 40.
Qg8 {[%clk 0:00:44.5]} 40... Qxc4+ {[%clk 0:01:08.9]} 41. Ka1 {[%clk 0:00:45]}
41... Qc1+ {[%clk 0:01:04.6]} 42. Ka2 {[%clk 0:00:44.4]} 42... Qc4+ {[%clk
0:01:03.5]} 43. Ka1 {[%clk 0:00:44.4]} 43... Qf1+ {[%clk 0:00:59.9]} 44. Ka2
{[%clk 0:00:42.8]} 44... Qf6 {[%clk 0:00:59.9]} 45. Qc8+ {[%clk 0:00:38.8]}
45... Kd6 {[%clk 0:01:00]} 46. Qd7+ {[%clk 0:00:35.8]} 46... Ke5 {[%clk
0:01:00]} 47. Qxa7 {[%clk 0:00:33.3]} 47... Qxe6+ {[%clk 0:00:59.8]} 48. Ka1
{[%clk 0:00:33.9]} 48... e3 {[%clk 0:00:57.9]} 49. Qa6 {[%clk 0:00:34.1]} 49...
Qd5 {[%clk 0:00:54.3]} 50. Qxb6 {[%clk 0:00:28.8]} 50... e2 {[%clk 0:00:52.3]}
51. Qc7+ {[%clk 0:00:29.2]} 51... Ke4 {[%clk 0:00:50.4]} 52. Qh7+ {[%clk
0:00:25.6]} 52... Ke3 {[%clk 0:00:50.6]} 0-1

[Event "*** Titled Tuesday Blitz"]
[Site "Chess.com"]
[Date "2020.04.07"]
[Round "5"]
[White "eldur16"]
[Black "ajian"]
[Result "0-1"]
[WhiteElo "2543"]
[BlackElo "2407"]
[TimeControl "180+1"]
[EndTime "13:56:20 PDT"]
[Termination "ajian won by resignation"]

1. e4 {[%clk 0:03:00.9]} 1... c5 {[%clk 0:02:53]} 2. Ne2 {[%clk 0:03:00]} 2...
Nc6 {[%clk 0:02:52.1]} 3. d4 {[%clk 0:02:59.3]} 3... cxd4 {[%clk 0:02:53]} 4.
Nxd4 {[%clk 0:02:59.4]} 4... Nf6 {[%clk 0:02:53.4]} 5. Nc3 {[%clk 0:02:59.3]}
5... e5 {[%clk 0:02:53.8]} 6. Ndb5 {[%clk 0:02:58.9]} 6... d6 {[%clk 0:02:53.9]}
7. Bg5 {[%clk 0:02:58.8]} 7... a6 {[%clk 0:02:54.2]} 8. Na3 {[%clk 0:02:59.3]}
8... b5 {[%clk 0:02:54.4]} 9. Nd5 {[%clk 0:02:59.5]} 9... Be7 {[%clk 0:02:54.2]}
10. Bxf6 {[%clk 0:02:59.6]} 10... Bxf6 {[%clk 0:02:55.1]} 11. c4 {[%clk
0:02:59.7]} 11... b4 {[%clk 0:02:54.4]} 12. Nc2 {[%clk 0:02:59]} 12... a5 {[%clk
0:02:54.8]} 13. g3 {[%clk 0:02:55.6]} 13... Bg5 {[%clk 0:02:51.4]} 14. h4 {[%clk
0:02:55]} 14... Bh6 {[%clk 0:02:51.7]} 15. Bh3 {[%clk 0:02:54.8]} 15... Be6
{[%clk 0:02:51.5]} 16. Kf1 {[%clk 0:02:54.4]} 16... O-O {[%clk 0:02:50.3]} 17.
Kg2 {[%clk 0:02:54.5]} 17... Nb8 {[%clk 0:02:14.5]} 18. b3 {[%clk 0:02:48.3]}
18... Na6 {[%clk 0:02:06.8]} 19. Qf3 {[%clk 0:02:42.1]} 19... Nc5 {[%clk
0:02:04.9]} 20. g4 {[%clk 0:02:32.4]} 20... Qxh4 {[%clk 0:01:54.9]} 21. Rad1
{[%clk 0:02:24.5]} 21... Bxd5 {[%clk 0:01:38.6]} 22. Rxd5 {[%clk 0:02:21.4]}
22... Qe7 {[%clk 0:01:39]} 23. Rhd1 {[%clk 0:02:18.1]} 23... Rfd8 {[%clk
0:01:38.6]} 24. g5 {[%clk 0:01:43.5]} 24... Bxg5 {[%clk 0:01:18.1]} 25. Kh1
{[%clk 0:01:41.7]} 25... Ne6 {[%clk 0:01:16.5]} 26. Rg1 {[%clk 0:01:30]} 26...
h6 {[%clk 0:01:10.7]} 27. Rdd1 {[%clk 0:01:24]} 27... Nf4 {[%clk 0:01:10]} 28.
Ne3 {[%clk 0:01:22.1]} 28... a4 {[%clk 0:00:57.7]} 29. Bf1 {[%clk 0:01:13.4]}
29... axb3 {[%clk 0:00:55.1]} 30. axb3 {[%clk 0:01:12.9]} 30... Ra2 {[%clk
0:00:55.3]} 31. Rg4 {[%clk 0:00:53.8]} 31... Rda8 {[%clk 0:00:44.5]} 32. Nf5
{[%clk 0:00:48.7]} 32... Qa7 {[%clk 0:00:29.5]} 33. c5 {[%clk 0:00:26.2]} 33...
Qxc5 {[%clk 0:00:27.5]} 34. Rxg5 {[%clk 0:00:16.7]} 34... hxg5 {[%clk
0:00:24.7]} 35. Bc4 {[%clk 0:00:15.9]} 35... Rxf2 {[%clk 0:00:22.7]} 36. Qg4
{[%clk 0:00:14.1]} 36... Rg2 {[%clk 0:00:17.5]} 37. Ne7+ {[%clk 0:00:12.9]}
37... Kf8 {[%clk 0:00:12.9]} 38. Qf5 {[%clk 0:00:11.1]} 38... Rh2+ {[%clk
0:00:06.4]} 0-1

[Event "*** Titled Tuesday Blitz"]
[Site "Chess.com"]
[Date "2020.04.07"]
[Round "5"]
[White "Nathan_Filgueiras"]
[Black "beccrajoy"]
[Result "1-0"]
[WhiteElo "2308"]
[BlackElo "1789"]
[TimeControl "180+1"]
[EndTime "13:56:24 PDT"]
[Termination "Nathan_Filgueiras won by checkmate"]

1. e4 {[%clk 0:02:29]} 1... c5 {[%clk 0:02:57.8]} 2. Nf3 {[%clk 0:02:28.3]} 2...
e6 {[%clk 0:02:56]} 3. d4 {[%clk 0:02:28.6]} 3... cxd4 {[%clk 0:02:56.9]} 4.
Nxd4 {[%clk 0:02:29.5]} 4... a6 {[%clk 0:02:57.6]} 5. Bd3 {[%clk 0:02:28.5]}
5... Nf6 {[%clk 0:02:53.7]} 6. O-O {[%clk 0:02:27.2]} 6... Qc7 {[%clk
0:02:52.6]} 7. Qe2 {[%clk 0:02:27.2]} 7... Nc6 {[%clk 0:02:52.1]} 8. Nxc6 {[%clk
0:02:25.6]} 8... dxc6 {[%clk 0:02:51.8]} 9. e5 {[%clk 0:02:23.9]} 9... Nd5
{[%clk 0:02:42.3]} 10. a3 {[%clk 0:02:23.3]} 10... b5 {[%clk 0:02:40.8]} 11. b3
{[%clk 0:02:00.4]} 11... Bb7 {[%clk 0:02:36.7]} 12. c4 {[%clk 0:01:55.1]} 12...
Nb6 {[%clk 0:02:26.5]} 13. Bb2 {[%clk 0:01:38.6]} 13... Kd8 {[%clk 0:02:15.9]}
14. Nc3 {[%clk 0:01:28.4]} 14... g6 {[%clk 0:01:46.3]} 15. Rad1 {[%clk
0:01:23.4]} 15... Ke7 {[%clk 0:01:31.1]} 16. Ne4 {[%clk 0:01:20.7]} 16... Bg7
{[%clk 0:01:26]} 17. Nd6 {[%clk 0:01:09]} 17... Rad8 {[%clk 0:01:20]} 18. Qf3
{[%clk 0:00:42.2]} 18... Rhf8 {[%clk 0:01:13.5]} 19. Qg3 {[%clk 0:00:38.3]}
19... Nd7 {[%clk 0:01:04.1]} 20. Qh4+ {[%clk 0:00:29.3]} 20... f6 {[%clk
0:01:02]} 21. Qxh7 {[%clk 0:00:26.9]} 21... Nxe5 {[%clk 0:00:30.6]} 22. Bxe5
{[%clk 0:00:21.2]} 22... fxe5 {[%clk 0:00:28.5]} 23. Bxg6 {[%clk 0:00:12.9]}
23... Rxd6 {[%clk 0:00:19.6]} 24. Qxg7+ {[%clk 0:00:12.2]} 24... Kd8 {[%clk
0:00:19.8]} 25. Qxf8+ {[%clk 0:00:12.2]} 25... Kd7 {[%clk 0:00:10]} 26. c5
{[%clk 0:00:11.3]} 26... Rd5 {[%clk 0:00:07.5]} 27. Rxd5+ {[%clk 0:00:11.2]}
27... cxd5 {[%clk 0:00:06.7]} 28. Qe8# {[%clk 0:00:11.3]} 1-0

[Event "*** Titled Tuesday Blitz"]
[Site "Chess.com"]
[Date "2020.04.07"]
[Round "5"]
[White "Agent-JL"]
[Black "AustrianFalcon"]
[Result "1-0"]
[WhiteElo "2430"]
[BlackElo "2593"]
[TimeControl "180+1"]
[EndTime "13:56:25 PDT"]
[Termination "Agent-JL won by checkmate"]

1. Nf3 {[%clk 0:02:48.6]} 1... g6 {[%clk 0:02:59.2]} 2. g3 {[%clk 0:02:46.5]}
2... Bg7 {[%clk 0:03:00.1]} 3. Bg2 {[%clk 0:02:47.4]} 3... e5 {[%clk 0:02:57.8]}
4. d3 {[%clk 0:02:47.5]} 4... Ne7 {[%clk 0:02:56.9]} 5. O-O {[%clk 0:02:48.2]}
5... O-O {[%clk 0:02:55.4]} 6. e4 {[%clk 0:02:48.6]} 6... b6 {[%clk 0:02:47.3]}
7. Nbd2 {[%clk 0:02:47.4]} 7... Bb7 {[%clk 0:02:47]} 8. c3 {[%clk 0:02:48]} 8...
d5 {[%clk 0:02:46.2]} 9. Qc2 {[%clk 0:02:44]} 9... Nd7 {[%clk 0:02:44.8]} 10. b4
{[%clk 0:02:44.1]} 10... a5 {[%clk 0:02:43.3]} 11. Bb2 {[%clk 0:02:40.9]} 11...
h6 {[%clk 0:02:32.4]} 12. a3 {[%clk 0:02:36.3]} 12... f5 {[%clk 0:02:19]} 13.
exf5 {[%clk 0:02:31.2]} 13... Nxf5 {[%clk 0:02:13.4]} 14. Rfe1 {[%clk
0:02:25.7]} 14... Qf6 {[%clk 0:02:06.3]} 15. Nf1 {[%clk 0:02:14.7]} 15... axb4
{[%clk 0:02:03.7]} 16. cxb4 {[%clk 0:02:10]} 16... Qd6 {[%clk 0:02:02.5]} 17.
Rac1 {[%clk 0:02:05.8]} 17... c5 {[%clk 0:02:01.2]} 18. Qb3 {[%clk 0:01:58.9]}
18... Kh7 {[%clk 0:01:55.9]} 19. Ne3 {[%clk 0:01:53.7]} 19... Nxe3 {[%clk
0:01:33]} 20. fxe3 {[%clk 0:01:40.1]} 20... c4 {[%clk 0:01:29]} 21. dxc4 {[%clk
0:01:16.8]} 21... dxc4 {[%clk 0:01:28.8]} 22. Qd1 {[%clk 0:01:17.1]} 22... Qe6
{[%clk 0:01:19.3]} 23. e4 {[%clk 0:01:08.7]} 23... b5 {[%clk 0:01:15.7]} 24. Qe2
{[%clk 0:00:58.9]} 24... Nb6 {[%clk 0:01:13.5]} 25. Qe3 {[%clk 0:00:54.3]} 25...
Na4 {[%clk 0:01:10.7]} 26. Ba1 {[%clk 0:00:53.9]} 26... Rfd8 {[%clk 0:01:06.9]}
27. Red1 {[%clk 0:00:49.8]} 27... g5 {[%clk 0:00:59.8]} 28. Rxd8 {[%clk
0:00:26]} 28... Rxd8 {[%clk 0:01:00.7]} 29. Qxg5 {[%clk 0:00:26.3]} 29... Qd6
{[%clk 0:00:33.5]} 30. Qf5+ {[%clk 0:00:21.6]} 30... Kg8 {[%clk 0:00:31.9]} 31.
Bxe5 {[%clk 0:00:16.8]} 31... Qb6+ {[%clk 0:00:28.8]} 32. Kh1 {[%clk 0:00:15.8]}
32... Qe3 {[%clk 0:00:24.9]} 33. Re1 {[%clk 0:00:10.6]} 33... Qb6 {[%clk
0:00:16.2]} 34. Qg4 {[%clk 0:00:08.9]} 34... Rd7 {[%clk 0:00:09.1]} 35. Qxd7
{[%clk 0:00:08.3]} 35... Bxe5 {[%clk 0:00:08.7]} 36. Nxe5 {[%clk 0:00:09.2]}
36... Qf2 {[%clk 0:00:08.3]} 37. Rf1 {[%clk 0:00:09]} 37... Qxf1+ {[%clk
0:00:08.7]} 38. Bxf1 {[%clk 0:00:09.1]} 38... Bxe4+ {[%clk 0:00:09.6]} 39. Kg1
{[%clk 0:00:09.8]} 39... c3 {[%clk 0:00:10.4]} 40. Qf7+ {[%clk 0:00:10]} 40...
Kh8 {[%clk 0:00:10.9]} 41. Nd7 {[%clk 0:00:08.8]} 41... c2 {[%clk 0:00:10.8]}
42. Nf6 {[%clk 0:00:09.6]} 42... Bh7 {[%clk 0:00:10.2]} 43. Qf8+ {[%clk
0:00:10]} 43... Bg8 {[%clk 0:00:09.9]} 44. Qxg8# {[%clk 0:00:10.9]} 1-0

[Event "*** Titled Tuesday Blitz"]
[Site "Chess.com"]
[Date "2020.04.07"]
[Round "5"]
[White "StoreySniper"]
[Black "vizumatv4hoda"]
[Result "0-1"]
[WhiteElo "2526"]
[BlackElo "2726"]
[TimeControl "180+1"]
[EndTime "13:56:27 PDT"]
[Termination "vizumatv4hoda won on time"]

1. c4 {[%clk 0:03:00.9]} 1... Nf6 {[%clk 0:02:54]} 2. g3 {[%clk 0:03:00.2]} 2...
g6 {[%clk 0:02:54.9]} 3. Bg2 {[%clk 0:03:00.6]} 3... Bg7 {[%clk 0:02:54.6]} 4.
Nc3 {[%clk 0:03:01.2]} 4... O-O {[%clk 0:02:55.5]} 5. d4 {[%clk 0:03:01.2]} 5...
d6 {[%clk 0:02:54.7]} 6. e4 {[%clk 0:03:00.1]} 6... Nc6 {[%clk 0:02:55.6]} 7.
Nge2 {[%clk 0:02:59.4]} 7... e5 {[%clk 0:02:53.5]} 8. d5 {[%clk 0:02:59.2]} 8...
Nd4 {[%clk 0:02:52.6]} 9. O-O {[%clk 0:02:58.5]} 9... c5 {[%clk 0:02:44.6]} 10.
dxc6 {[%clk 0:02:57.7]} 10... bxc6 {[%clk 0:02:45.5]} 11. Bg5 {[%clk 0:02:43.4]}
11... h6 {[%clk 0:02:42.5]} 12. Be3 {[%clk 0:02:36.3]} 12... Ng4 {[%clk
0:02:41.1]} 13. Bxd4 {[%clk 0:02:29.4]} 13... exd4 {[%clk 0:02:42]} 14. Nxd4
{[%clk 0:02:29.5]} 14... Ne5 {[%clk 0:02:39.9]} 15. b3 {[%clk 0:02:17.5]} 15...
Bg4 {[%clk 0:02:40.3]} 16. f3 {[%clk 0:02:16.1]} 16... Qg5 {[%clk 0:02:31.5]}
17. Nce2 {[%clk 0:01:23.8]} 17... Qe3+ {[%clk 0:02:28.5]} 18. Kh1 {[%clk
0:01:22.5]} 18... Bd7 {[%clk 0:02:29.4]} 19. Nc2 {[%clk 0:01:12.9]} 19... Qc5
{[%clk 0:02:28.8]} 20. h3 {[%clk 0:01:02.4]} 20... f5 {[%clk 0:02:28.7]} 21. Nf4
{[%clk 0:00:38.2]} 21... fxe4 {[%clk 0:02:17.5]} 22. fxe4 {[%clk 0:00:37.6]}
22... Rae8 {[%clk 0:02:18.1]} 23. Qd2 {[%clk 0:00:21.6]} 23... Rf7 {[%clk
0:02:18.4]} 24. Rae1 {[%clk 0:00:20.9]} 24... Ref8 {[%clk 0:02:15.7]} 25. Ne3
{[%clk 0:00:18]} 25... a5 {[%clk 0:02:14.3]} 26. Rd1 {[%clk 0:00:16.4]} 26... h5
{[%clk 0:02:14.3]} 27. Nc2 {[%clk 0:00:13.1]} 27... a4 {[%clk 0:02:07.8]} 28.
Qxd6 {[%clk 0:00:12.3]} 28... Qxd6 {[%clk 0:02:05]} 29. Rxd6 {[%clk 0:00:13.2]}
29... g5 {[%clk 0:02:05.9]} 30. Nd4 {[%clk 0:00:11.2]} 30... gxf4 {[%clk
0:02:05.6]} 31. gxf4 {[%clk 0:00:12.1]} 31... Rxf4 {[%clk 0:02:02.6]} 32. Rxf4
{[%clk 0:00:12.2]} 32... Rxf4 {[%clk 0:02:03.5]} 33. Nf3 {[%clk 0:00:10.4]}
33... Nxf3 {[%clk 0:02:01]} 34. Rxd7 {[%clk 0:00:10.7]} 34... axb3 {[%clk
0:01:57]} 35. axb3 {[%clk 0:00:10]} 35... Nd4 {[%clk 0:01:57.6]} 36. Rc7 {[%clk
0:00:08.8]} 36... Rf2 {[%clk 0:01:55.8]} 37. b4 {[%clk 0:00:05.8]} 37... Rb2
{[%clk 0:01:55.8]} 38. b5 {[%clk 0:00:05.4]} 38... Rb1+ {[%clk 0:01:55.3]} 39.
Bf1 {[%clk 0:00:04.3]} 39... Rxf1+ {[%clk 0:01:54.3]} 40. Kg2 {[%clk 0:00:04.9]}
40... Rb1 {[%clk 0:01:53.8]} 41. bxc6 {[%clk 0:00:05.4]} 41... Rc1 {[%clk
0:01:53.4]} 42. Rc8+ {[%clk 0:00:05.8]} 42... Kh7 {[%clk 0:01:54]} 43. c7 {[%clk
0:00:04]} 43... Rc2+ {[%clk 0:01:53]} 44. Kg3 {[%clk 0:00:03.5]} 44... Rxc4
{[%clk 0:01:53.9]} 45. Kh4 {[%clk 0:00:03.9]} 45... Ne6 {[%clk 0:01:52.7]} 46.
Kxh5 {[%clk 0:00:03.2]} 46... Nxc7 {[%clk 0:01:50.6]} 47. e5 {[%clk 0:00:02.4]}
47... Rc5 {[%clk 0:01:50.4]} 48. Kg4 {[%clk 0:00:01.8]} 48... Bxe5 {[%clk
0:01:50.6]} 49. h4 {[%clk 0:00:01.8]} 49... Bg7 {[%clk 0:01:50.8]} 50. h5 {[%clk
0:00:01.6]} 50... Rc4+ {[%clk 0:01:50.4]} 51. Kh3 {[%clk 0:00:02.2]} 51... Kh6
{[%clk 0:01:49.2]} 52. Kg2 {[%clk 0:00:03.1]} 52... Kxh5 {[%clk 0:01:49.2]} 53.
Kf3 {[%clk 0:00:04]} 53... Kg5 {[%clk 0:01:49.3]} 54. Ke2 {[%clk 0:00:04.9]}
54... Kf5 {[%clk 0:01:48.5]} 55. Kd3 {[%clk 0:00:05.8]} 55... Rc5 {[%clk
0:01:48.6]} 56. Kd2 {[%clk 0:00:06.6]} 56... Ke4 {[%clk 0:01:48.4]} 57. Ke2
{[%clk 0:00:07.2]} 57... Rc2+ {[%clk 0:01:48.1]} 58. Kd1 {[%clk 0:00:06.6]}
58... Rc6 {[%clk 0:01:48]} 59. Rg8 {[%clk 0:00:05.7]} 59... Be5 {[%clk
0:01:48.3]} 60. Rc8 {[%clk 0:00:02.9]} 60... Bf4 {[%clk 0:01:47.7]} 61. Ke2
{[%clk 0:00:02.4]} 61... Rc2+ {[%clk 0:01:46.9]} 62. Kf1 {[%clk 0:00:02.6]}
62... Kf3 {[%clk 0:01:44.5]} 63. Re8 {[%clk 0:00:02.2]} 63... Nd5 {[%clk
0:01:42.2]} 0-1